{"text_format":"2","workbook":"xlsx","n_sheets":19,"sheets":["PFP","PFP_I Equip Proj","PFP_II Desp Viagens","PFP_III Ser Graf","PFP_IV Desp Gerais","PFP_V Topografia","PFP_VII Geotecnia","PFP_X Cronog Financ","PFP_XII_Mobil_Desmob","PFP_XIII_ Det_ custos Adm_","PFP_XIV Det_ Desp Fiscais","PFP_XV Det_ Enc_ Soc_","PTP_I Ficha Cur_ ","PTP_II EQUIPE TÉCNICA","PTP_III Cronog Per NS","PTP_IV Cronog Per NT e A","PTP_V Cronog Físico","Reajustamento","COMP PICK"],"not_rendered":{"charts":0,"images":3,"macros":0,"external_links":1,"defined_names":16,"comments":4,"pivot_tables":0},"unopened":[],"bounds":{"document_bytes":16777216,"sheet_cells":100000,"run_cost":"one","rows_first":2000,"rows_last":500,"rows_between":2000,"halvings":0,"cell_chars":16384,"cell_head_chars":4096},"cells_cut":0,"cells_raw":0,"read":"whole","date_system":"1900"}

{"sheet":"PFP","index":0,"n_rows":53,"n_cols":18,"rows_kept":53,"cut":false,"hidden":false,"merged":[[5,0,5,4],[5,5,5,13],[4,0,4,4],[4,5,4,13],[0,0,1,12],[0,13,0,14],[1,13,1,14],[2,0,2,14],[6,0,6,14],[7,0,7,12],[7,13,7,14],[8,0,8,14],[9,0,9,12],[9,13,9,14],[11,0,11,12],[11,13,11,14],[13,0,13,12],[13,13,13,14],[10,0,10,12],[10,13,10,14],[12,0,12,14],[17,0,17,12],[17,13,17,14],[21,0,21,12],[21,13,21,14],[22,0,22,12],[18,0,18,12],[18,13,18,14],[14,0,14,12],[14,13,14,14],[25,0,25,12],[25,13,25,14],[19,0,19,12],[19,13,19,14],[20,0,20,14],[22,13,22,14],[24,0,24,12],[24,13,24,14],[23,0,23,12],[23,13,23,14],[15,0,15,12],[15,13,15,14],[16,0,16,12],[16,13,16,14],[32,0,32,12],[32,13,32,14],[26,0,26,12],[26,13,26,14],[27,0,27,12],[27,13,27,14],[28,0,28,12],[28,13,28,14],[29,0,29,12],[29,13,29,14],[30,0,30,14],[31,0,31,12],[31,13,31,14],[33,0,33,12],[33,13,33,14],[37,0,37,12],[37,13,37,14],[35,0,35,12],[35,13,35,14],[36,0,36,12],[34,13,34,14],[34,0,34,12],[40,0,40,12],[40,13,40,14],[36,13,36,14],[50,0,50,14],[51,0,51,14],[39,0,39,8],[38,0,38,8],[38,9,38,14],[52,0,52,14],[41,0,41,12],[41,13,41,14],[44,0,44,14],[46,0,46,14]]}
["PROPOSTA FINANCEIRA DE PROJETO",{"$nulls":12},"CODIGO:"]
[{"$nulls":13},"PFP"]
["NOME DA CONSULTORA:"]
[]
["PROJETO:",{"$nulls":4},"OBJETO:",{"$nulls":8},"EDITAL:"]
["Região do Baixio do Poço Magro - Guanambi/BA",{"$nulls":4},"Elaboração de projeto básico de engenharia para aproveitamento hidro-agrícola, com sistema de abastecimento de água bruta, em benefício de comunidades rurais localizadas no entorno da região do Baixio de Poço do Magro e adjacências, no município de Guanambi, no Estado da Bahia."]
["SERVIÇOS"]
["CUSTOS DIRETOS",{"$nulls":12},{"$f":"SUM(N10+N14+N17+N25)","v":102309.84}]
["MOBILIZAÇÃO/DESMOBILIZAÇÃO"]
["A - TOTAL DA MOBILIZAÇÃO/DESMOBILIZAÇÃO",{"$nulls":12},{"$f":"N11+N12","v":10942.09}]
["A1 - MOBILIZAÇÃO (PFP-XII)",{"$nulls":12},{"$f":"PFP_XII_Mobil_Desmob!G39-PFP_XII_Mobil_Desmob!G17*1.25","v":8875.8024999999998}]
["A2 - DESMOBILIZAÇÃO (PFP-XII)",{"$nulls":12},{"$f":"PFP_XII_Mobil_Desmob!G39-PFP!N11","v":2066.2875000000004}]
["MÃO-DE-OBRA"]
["B - TOTAL DE SALÁRIO DA EQUIPE",{"$nulls":12},{"$f":"SUM(N15:O16)","v":85207.16}]
["B1 - TOTAL SALÁRIOS DA EQUIPE COM VÍNCULO (PFP-I)",{"$nulls":12},{"$f":"'PFP_I Equip Proj'!D42","v":85207.16}]
["B2 - TOTAL SALÁRIO DO AUTÔNOMO (PFP-I)",{"$nulls":12},{"$f":"'PFP_I Equip Proj'!E42","v":0}]
["B3 - TRANSP., ALIMENT. E MORADIA CONFORME CLT (SOMATÓRIO DA LINHA \"C\" DOS (PFP-XI)"]
["C - TOTAL DE ENCARGOS SOCIAIS",{"$nulls":12},{"$f":"SUM(N19:O20)","v":42450.21}]
["C1 - 49,82% INCIDENTE SOBRE O ITEM  B1 ",{"$nulls":12},{"$f":"'PFP_I Equip Proj'!F42","v":42450.21}]
["C2 - 20% INCIDENTE SOBRE O ITEM  B2",{"$nulls":12},{"$f":"'PFP_I Equip Proj'!G42","v":0}]
["OUTRAS DESPESAS"]
["D - DESPESAS COM VIAGENS (PFP-II)",{"$nulls":12},{"$f":"'PFP_II Desp Viagens'!L30","v":2540}]
["E - SERVIÇOS GRÁFICOS (PFP-III)",{"$nulls":12},{"$f":"'PFP_III Ser Graf'!G44","v":1535.59}]
["F - DESPESAS GERAIS (PFP-IV)",{"$nulls":12},{"$f":"'PFP_IV Desp Gerais'!H42:H42","v":2085}]
["TOTAL DE OUTRAS DESPESAS",{"$nulls":12},{"$f":"N22+N23+N24","v":6160.59}]
["CUSTOS INDIRETOS",{"$nulls":12},{"$f":"N27+N28+N29","v":36320.592260000005}]
["G -  CUSTO DE ADMINISTRAÇÃO - (12% DO ITEM B) (PFP-XIII)",{"$nulls":12},{"$f":"'PFP_XIII_ Det_ custos Adm_'!G36","v":10224.85}]
["H - REMUNERAÇÃO DA EMPRESA (LUCRO) - (6,74% DOS ITENS A+B+C+D+E+F+G)",{"$nulls":12},{"$f":"0.0674*(N10+N14+N18+N22+N23+N24+N27)","v":10445.982260000001}]
["I - DESPESAS FISCAIS - (9,46% = DF' DOS ITENS A+B+C+D+E+F+G+H) (PFP-XIV)",{"$nulls":12},{"$f":"ROUND((('PFP_XIV Det_ Desp Fiscais'!G37/100)*(PFP!N10+PFP!N14+PFP!N18+PFP!N22+PFP!N23+PFP!N24+PFP!N27+PFP!N28)),2)","v":15649.76},null,null,{"$f":"ROUND(((N10+N14+N18+N22+N23+N24+N27+N28)*0.0946),2)","v":15649.76}]
["SUB-TOTAL TOTAL DOS SERVIÇOS ",{"$nulls":12},{"$f":"N8+N26","v":138630.43226}]
["SERVIÇOS DE CAMPO"]
["J1 - SERVIÇOS TOPOGRÁFICOS (PFP-V)",{"$nulls":12},{"$f":"'PFP_V Topografia'!G39","v":90895.15}]
["J2 - SERVIÇOS CARTOGRÁFICOS (PFP-VI)",{"$nulls":12},0]
["J3 - SERVIÇOS GEOTÉCNICOS (PFP-VII)",{"$nulls":12},{"$f":"'PFP_VII Geotecnia'!G67","v":4675.5}]
["J4 - SERVIÇOS PEDOLÓGICOS (PFP-VIII)",{"$nulls":12},0]
["J5 - SERVIÇOS DE VERIFICAÇÃO DE DRENABILIDADE (PFP-IX)",{"$nulls":12},0]
["TOTAL DOS SERVIÇOS  DE CAMPO",{"$nulls":12},{"$f":"SUM(N32:O36)","v":95570.65},null,null,233907.89843844122]
["TOTAL DA PROPOSTA",{"$nulls":12},{"$f":"N30+N37","v":234201.08226}]
["NOME DO INFORMANTE:",{"$nulls":8},"QUALIFICAÇÃO:",{"$nulls":7},{"$f":"Q37-N38","v":-293.18382155877771}]
[]
["ASSINATURA:",{"$nulls":12},"DATA:"]
[]
["OBSERVAÇÃO:"]
["ESTE ORÇAMENTO FOI CALCULADO COM OS SEGUINTES % MÁXIMOS DE ENCARGOS SOCIAIS E CUSTOS INDIRETOS: "]
["1. ENCARGOS SOCIAIS DE AUTÔNOMOS = 20% SOBRE O SALÁRIO MENSAL"]
["2. ENCARGOS SOCIAIS DA EQUIPE COM VÍNCULO = 49,82% SOBRE O SALÁRIO MENSAL"]
["3. CUSTO DE ADMINISTRAÇÃO = 12% SOBRE O TOTAL DE SALÁRIOS DA EQUIPE (B1 + B2)"]
["4. REMUNERAÇÃO DA EMPRESA (LUCRO) = 6,74% SOBRE OS ITENS DE CUSTOS DIRETOS + CUSTO DE ADMINISTRAÇÃO"]
["5. DF = A SOMA DOS TRIBUTOS (EX: ISS 5,00 + PIS 0,65 + COFINS 3,00 = 8,65%)"]
["6. DF' = UTILIZADO NA LINHA \"I\" SERÁ CALCULADO APLICANDO A SEGUINTE FÓRMULA:"]
["    DF' = { [ 1 / ( 1 - DF) ] - 1 } x 100"]
["    DF' = { [ 1 / ( 1 - 0,0865 ) ] - 1 } x 100"]
["    DF' = 0,0946  ou  9,46%"]

{"sheet":"PFP_I Equip Proj","index":1,"n_rows":53,"n_cols":7,"rows_kept":53,"cut":false,"hidden":false,"merged":[[0,0,1,5],[2,0,2,6],[6,0,8,0],[5,2,5,5]]}
["SALÁRIOS E ENCARGOS DA EQUIPE",{"$nulls":5},"CODIGO:"]
[{"$nulls":6},"PFP-I"]
["NOME DA CONSULTORA:"]
[]
["PROJETO:",null,"OBJETO:",null,null,null,"EDITAL:"]
[{"$f":"PFP!A6","v":"Região do Baixio do Poço Magro - Guanambi/BA"},null,{"$f":"PFP!F6","v":"Elaboração de projeto básico de engenharia para aproveitamento hidro-agrícola, com sistema de abastecimento de água bruta, em benefício de comunidades rurais localizadas no entorno da região do Baixio de Poço do Magro e adjacências, no município de Guanambi, no Estado da Bahia."}]
["SÍMBOLO","TOTAL DE","SALÁRIO","TOTAL CUSTO","TOTAL CUSTO","TOTAL CUSTO","TOTAL CUSTO"]
[null,"HOMENS/MÊS","MENSAL  (R$)","SALÁRIOS DE "," SALÁRIOS DE  ","E. SOCIAIS DE ","E. SOCIAIS DE "]
[null,null,null,"B1","B2","B1","B2"]
[]
["C",0,null,{"$f":"B11*C11","v":0},null,{"$f":"D11*0.2","v":0}]
[]
["P0",1,20901.919999999998,{"$f":"ROUND((B13*C13),2)","v":20901.919999999998},null,{"$f":"D13*'PFP_XV Det_ Enc_ Soc_'!$F$47","v":10413.336543999998}]
[]
["P1",3,15911.57,{"$f":"ROUND((B15*C15),2)","v":47734.71},null,{"$f":"ROUND((D15*'PFP_XV Det_ Enc_ Soc_'!$F$47),2)","v":23781.43}]
[]
["P2",0,null,0,null,{"$f":"ROUND((D17*'PFP_XV Det_ Enc_ Soc_'!$F$47),2)","v":0}]
[]
["P3",0,null,0,null,{"$f":"ROUND((D19*'PFP_XV Det_ Enc_ Soc_'!$F$47),2)","v":0}]
[]
["T0",0,null,0,null,{"$f":"ROUND((D21*'PFP_XV Det_ Enc_ Soc_'!$F$47),2)","v":0}]
[]
["T1",1,4423.28,4423.28,null,{"$f":"ROUND((D23*'PFP_XV Det_ Enc_ Soc_'!$F$47),2)","v":2203.6799999999998}]
[]
["T1",1,4423.28,4423.28,null,{"$f":"ROUND((D25*'PFP_XV Det_ Enc_ Soc_'!$F$47),2)","v":2203.6799999999998}]
[]
["T2",1,2157.1799999999998,2157.1799999999998,null,{"$f":"ROUND((D27*'PFP_XV Det_ Enc_ Soc_'!$F$47),2)","v":1074.71}]
[]
["T3",1,3323.27,3323.27,null,{"$f":"ROUND((D29*'PFP_XV Det_ Enc_ Soc_'!$F$47),2)","v":1655.65}]
[]
["A1",0,null,0,null,{"$f":"ROUND((D31*'PFP_XV Det_ Enc_ Soc_'!$F$47),2)","v":0}]
[]
["A2",0,null,0,null,{"$f":"ROUND((D33*'PFP_XV Det_ Enc_ Soc_'!$F$47),2)","v":0}]
[]
["A3",1,2243.52,2243.52,null,{"$f":"ROUND((D35*'PFP_XV Det_ Enc_ Soc_'!$F$47),2)","v":1117.72}]
[]
[]
[]
[]
[]
[]
["TOTAIS",{"$f":"SUM(B10:B41)","v":9},null,{"$f":"ROUND((SUM(D11:D41)),2)","v":85207.16},{"$f":"SUM(E11:E41)","v":0},{"$f":"ROUND((SUM(F11:F41)),2)","v":42450.21},{"$f":"SUM(G11:G41)","v":0}]
["NOME DO INFORMANTE:",{"$nulls":4},"QUALIFICAÇÃO:"]
[]
["ASSINATURA:",{"$nulls":5},"DATA:"]
[]
["LEGENDA:"]
["B1 - SALÁRIOS DA EQUIPE EM DIAS ÚTEIS"]
["B2- SALÁRIO DO AUTÔNOMO (CONSULTOR)"]
["OBSERVAÇÃO:"]
["UTILIZAR OS SÍMBOLOS DO FOR PPT-II - EQUIPE TÉCNICA"]
["DETALHAR OS ENCARGOS SOCIAIS NO FOR PPF-XV"]
["NÚMERO DE HORAS TRABALHADAS  POR MÊS = 176 (CENTO E SETENTA E SEIS)"]

{"sheet":"PFP_II Desp Viagens","index":2,"n_rows":39,"n_cols":14,"rows_kept":39,"cut":false,"hidden":false,"merged":[[33,0,33,13],[38,0,38,13],[28,11,28,13],[29,0,29,10],[29,11,29,13],[32,1,32,11],[28,0,28,1],[28,2,28,4],[28,5,28,7],[28,8,28,10],[0,0,1,11],[0,12,0,13],[1,12,1,13],[2,0,2,13],[4,3,4,11],[6,1,8,1],[7,11,7,13],[5,0,5,2],[7,8,7,10],[6,2,6,7],[6,8,6,13],[7,2,7,4],[7,5,7,7],[5,3,5,13]]}
["DESPESAS COM VIAGENS",{"$nulls":11},"CODIGO:"]
[{"$nulls":12},"PFP-II"]
["NOME DA CONSULTORA:"]
[]
["PROJETO:",null,null,"OBJETO:",{"$nulls":8},"EDITAL:"]
[{"$f":"'PFP_I Equip Proj'!A6","v":"Região do Baixio do Poço Magro - Guanambi/BA"},null,null,{"$f":"'PFP_I Equip Proj'!C6","v":"Elaboração de projeto básico de engenharia para aproveitamento hidro-agrícola, com sistema de abastecimento de água bruta, em benefício de comunidades rurais localizadas no entorno da região do Baixio de Poço do Magro e adjacências, no município de Guanambi, no Estado da Bahia."}]
[null,"ROTEIRO","PASSAGENS",{"$nulls":5},"DIÁRIAS"]
["EQUIPE",null,"AÉREAS",null,null,"TERRESTRES",null,null,"NÍVEL SUPERIOR",null,null,"NÍVEL TÉC/AUX/APOIO"]
[null,null,"QUANT.","CUSTO (R$)","TOTAL (R$)","QUANT.","CUSTO (R$)","TOTAL (R$)","QUANT.","CUSTO (R$)","TOTAL (R$)","QUANT.","CUSTO (R$)","TOTAL (R$)"]
["P0","SSA/GUANAMBI/SSA",null,null,{"$f":"C10*D10","v":0},1,300,{"$f":"F10*G10","v":300},1,230,{"$f":"I10*J10","v":230},0,0,{"$f":"L10*M10","v":0}]
["P1","SSA/GUANAMBI/SSA",null,null,0,3,300,{"$f":"F11*G11","v":900},3,230,{"$f":"I11*J11","v":690},0,0,{"$f":"L11*M11","v":0}]
[{"$nulls":4},0,null,null,0,null,null,{"$f":"I12*J12","v":0},0,0,{"$f":"L12*M12","v":0}]
[{"$nulls":4},0]
["P0","BJL/BAXIO DO POÇO MAGRO/BJL",null,null,0,4,40,{"$f":"F14*G14","v":160}]
["P1","BJL/BAXIO DO POÇO MAGRO/BJL",null,null,0,2,40,80,null,null,null,0,0,{"$f":"L15*M15","v":0}]
[{"$nulls":4},0]
[{"$nulls":4},0]
["P0","TAXI ",null,null,null,4,30,{"$f":"F18*G18","v":120}]
["P1","TAXI ",null,null,null,2,30,60]
[]
[]
[{"$nulls":7},0]
[]
[]
[]
[]
[]
[]
["TOTAIS COM PASSAGENS/DIÁRIAS",null,{"$f":"SUM(E10:E28)","v":0},null,null,{"$f":"SUM(H10:H28)","v":1620},null,null,{"$f":"SUM(K10:K28)","v":920},null,null,{"$f":"SUM(N10:N18)","v":0}]
["TOTAL DE DESPESAS COM VIAGENS ",{"$nulls":10},{"$f":"C29+F29+I29+L29","v":2540}]
[]
["NOME DO INFORMANTE:",{"$nulls":5},"QUALIFICAÇÃO:"]
["ASSINATURA:",{"$nulls":11},"DATA:"]
["OBSERVAÇÃO:"]
["1 -  INCLUIR AS DESPESAS COM VIAGENS DA EQUIPE DURANTE A EXECUÇÃO DOS SERVIÇOS, INCLUSIVE PARA AS REUNIÕES COM A CODEVASF. "]
["2 - NÂO INCLUIR AS VIAGENS COM MOBILIZAÇÃO/DESMOBILIZAÇÃO DA EQUIPE"]
["3 - AS DIÁRIAS COBREM DESPESAS COM TAXI, ALIMENTAÇÃO E HOSPEDAGEM"]
["4 - TRANSFERIR O TOTAL DAS DESPESAS COM VIAGENS PARA A LINHA \"D\" DO (FOR PPF-I)"]
["5 - A LICITANTE DEVERÁ ADAPTAR OS ROTEIROS E VALORES PARA AS SUAS CONDIÇÕES."]

{"sheet":"PFP_III Ser Graf","index":3,"n_rows":52,"n_cols":7,"rows_kept":52,"cut":false,"hidden":false,"merged":[[0,0,1,5],[2,0,2,6],[4,2,4,5],[6,0,7,2],[6,3,7,3],[6,5,6,6],[5,2,5,5],[5,0,5,1],[48,0,48,6],[52,0,52,6],[41,0,41,5],[42,0,42,5],[43,0,43,5],[46,0,46,4]]}
["SERVIÇOS GRÁFICOS",{"$nulls":5},"CODIGO:"]
[{"$nulls":6},"PFP-III"]
["NOME DA CONSULTORA:"]
[]
["PROJETO:",null,"OBJETO:",null,null,null,"EDITAL:"]
[{"$f":"'PFP_II Desp Viagens'!A6:C6","v":"Região do Baixio do Poço Magro - Guanambi/BA"},null,{"$f":"'PFP_I Equip Proj'!C6","v":"Elaboração de projeto básico de engenharia para aproveitamento hidro-agrícola, com sistema de abastecimento de água bruta, em benefício de comunidades rurais localizadas no entorno da região do Baixio de Poço do Magro e adjacências, no município de Guanambi, no Estado da Bahia."}]
["DISCRIMINAÇÃO",null,null,"EXEMPLARES","Nº DE","CUSTOS (R$)"]
[{"$nulls":4},"VIAS","UNITÁRIO","TOTAL"]
[]
["Relatório de Reconhecimento",null,null,1,1,50,{"$f":"ROUND((D10*E10*F10),2)","v":50}]
["Cadastro",null,null,1,1,45.99,{"$f":"ROUND((D11*E11*F11),2)","v":45.99}]
["Estudo de concepção",null,null,1,2,90,180]
["Minuta do projeto básico",null,null,1,1,160,160]
["Projeto básico final ",null,null,1,2,220,440]
["Orçamento com quantitativos  e especificações",null,null,1,2,40,80]
["Detalhamentos elétricos e estruturais",null,null,1,2,110,220]
["Estudos Ambientais",null,null,1,2,110,220]
{"$rows_empty":24}
["SUBTOTAL",{"$nulls":5},{"$f":"ROUND((SUM(G10:G41)),2)","v":1395.99}]
["RESERVA DE 10%",{"$nulls":5},{"$f":"ROUND((10%*G42),2)","v":139.6}]
["TOTAL  DE SERVIÇOS GRÁFICOS",{"$nulls":5},{"$f":"ROUND((G42+G43),2)","v":1535.59}]
["NOME DO INFORMANTE:",null,null,"QUALIFICAÇÃO:"]
[]
["ASSINTATURA:",{"$nulls":4},"DATA:"]
[]
["OBSERVAÇÃO:"]
["1 - CORREPONDEM AOS SERVIÇOS COM IMPRESSÃO DOS  RELATÓRIOS. "]
["2 - RESERVA DE 10% CALCULADO SOBRE O SUBTOTAL PARA IMPRESSÃO DE RELATÓRIOS ESPECÍFICOS EXCEPCIONALMENTE "]
["     SOLICITADO PELA CODEVASF"]

{"sheet":"PFP_IV Desp Gerais","index":4,"n_rows":48,"n_cols":8,"rows_kept":48,"cut":false,"hidden":false,"merged":[[0,0,1,6],[2,0,2,7],[5,2,5,6],[6,0,7,3],[6,4,7,4],[6,5,7,5],[6,6,6,7],[48,0,48,7],[49,0,49,7],[41,0,41,6],[44,0,44,5],[46,0,46,7],[47,0,47,7]]}
["DESPESAS GERAIS ",{"$nulls":6},"CODIGO:"]
[{"$nulls":7},"PFP-IV"]
["NOME DA CONSULTORA:"]
[]
["PROJETO:",null,"OBJETO:",{"$nulls":4},"EDITAL:"]
[{"$f":"'PFP_III Ser Graf'!A6","v":"Região do Baixio do Poço Magro - Guanambi/BA"},null,{"$f":"'PFP_III Ser Graf'!C6","v":"Elaboração de projeto básico de engenharia para aproveitamento hidro-agrícola, com sistema de abastecimento de água bruta, em benefício de comunidades rurais localizadas no entorno da região do Baixio de Poço do Magro e adjacências, no município de Guanambi, no Estado da Bahia."}]
["DISCRIMINAÇÃO",null,null,null,"UNID.","QUANT.","CUSTOS (R$)"]
[{"$nulls":6},"UNITÁRIO","TOTAL"]
[]
["Aluguel e Manutenção de veículo de passeio",null,null,null,"MÊS",1,1575,{"$f":"ROUND((F10*G10),2)","v":1575}]
[]
["Serviços de Computação",null,null,null,"MÊS",6,50,{"$f":"ROUND((F12*G12),2)","v":300}]
[]
["Comunicações",null,null,null,"MÊS",6,35,{"$f":"ROUND((F14*G14),2)","v":210}]
{"$rows_empty":27}
["TOTAL  DE DESPESAS GERAIS",{"$nulls":6},{"$f":"ROUND((SUM(H10:H19)),2)","v":2085}]
["NOME DO INFORMANTE:",{"$nulls":4},"QUALIFICAÇÃO:"]
[]
["ASSINATURA:",{"$nulls":5},"DATA:"]
[]
["OBSERVAÇÃO:"]
["DESPESAS COM ALUGUEL E MANUTENÇÃO DE VEÍCULOS, SERVIÇOS DE COMPUTAÇÃO E COMUNICAÇÃO (MALOTE, CORREIO ETC.)"]

{"sheet":"PFP_V Topografia","index":5,"n_rows":47,"n_cols":7,"rows_kept":47,"cut":false,"hidden":false,"merged":[[11,1,11,2],[27,1,27,2],[20,1,20,2],[23,1,23,2],[24,1,24,2],[13,1,13,2],[12,1,12,2],[17,1,17,2],[18,1,18,2],[19,1,19,2],[25,1,25,2],[33,1,33,2],[34,1,34,2],[35,1,35,2],[36,1,36,2],[14,1,14,2],[0,0,1,5],[2,0,2,6],[5,2,5,5],[6,0,7,2],[6,3,7,3],[6,4,7,4],[6,5,6,6],[42,0,43,4],[43,5,43,6],[8,0,8,2],[38,0,38,5],[41,0,41,2],[41,3,41,6],[10,1,10,2],[30,1,30,2],[31,1,31,2],[15,1,15,2],[16,1,16,2],[26,1,26,2],[28,1,28,2],[29,1,29,2],[9,1,9,2],[37,1,37,2]]}
["TOPOGRAFIA",{"$nulls":5},"CODIGO:"]
[{"$nulls":6},"PFP-V"]
["NOME DA CONSULTORA: "]
[]
["PROJETO:",null,"OBJETO:",null,null,null,"EDITAL:"]
[{"$f":"'PFP_IV Desp Gerais'!A6","v":"Região do Baixio do Poço Magro - Guanambi/BA"},null,{"$f":"'PFP_IV Desp Gerais'!C6:G6","v":"Elaboração de projeto básico de engenharia para aproveitamento hidro-agrícola, com sistema de abastecimento de água bruta, em benefício de comunidades rurais localizadas no entorno da região do Baixio de Poço do Magro e adjacências, no município de Guanambi, no Estado da Bahia."}]
["DISCRIMINAÇÃO",null,null,"UNID.","QUANT.","PREÇOS (R$)"]
[{"$nulls":5},"UNITÁRIO","TOTAL"]
["1 - Amarração Planialtimétrica"]
["1.1-","Pontos GPS, método estático, com receptores de dupla frequência,para transporte de coordenadas de vértices do IBGE",null,"unid.",4,725.69,{"$f":"ROUND((E10*F10),2)","v":2902.76}]
["1.2-","Poligonais eletrônicas para transporte de coordenadas tipo IIP (ABNT)",null,"km",0,0,{"$f":"ROUND((E11*F11),2)","v":0}]
["1.3 - ","Transporte de cotas com Nivelamento geométrico IIN (ABNT)",null,"km",6.5,579.51,3766.82]
[]
["2.-","Locação e nivelamento de eixos "]
["2.1 - ","Levantamento planialtimétrico cadastral com estação total classe II, com locação de eixo e seções transversais com 10m, para cada lado. ",null,"km",55.55,1475.45,81961.25]
[]
["3 -","Levantamento Planialtimétrico Semi-Cadastral"]
["3.1 -","Levantamento Planialtimétrico semi-cadastral classe IIPAC",null,"há",0,0,0]
[]
["4 - ","Equipe de topografia"]
["4.1 - ","Equipe de topografia",null,"mês",0,0,0]
[]
["5 - ","Cadastros"]
["5.1 - ","Cadastro da rede existente, com nivelamento classe IIN",null,"km",0,0,0]
["5.2 - ","Cadastro da rede (adutoras, interceptores e emissários) existente, com levantamento topográfico."]
["5.3 -","Cadastro físico",null,"unid.",0,0,0]
["5.4 -","Locação de furos de sondagem para cadastro",null,"unid.",5,16.96,84.8]
[]
["6 - ","Monumentação"]
["6.1 -","Marcos de concreto",null,"unid.",{"$f":"56","v":56},38.92,2179.52]
["6.2 - ","Piquetes de madeira",null,"unid.",0,0,0]
["6.3 - ","Barrotes de madeira",null,"unid.",0,0,0]
[]
["7 - ","Batimetria"]
["7.1 - ","Batimetria de seções fluviais",null,"km",0,0,0]
[]
["7 - "]
[]
["TOTAL  DE SERVIÇOS TOPOGRÁFICOS",{"$nulls":5},{"$f":"ROUND((SUM(G10:G38)),2)","v":90895.15}]
[]
["NOME DO INFORMANTE:",null,null,"QUALIFICAÇÃO:"]
[]
["ASSINATURA:",{"$nulls":4},"DATA:"]
[]
["OBSERVAÇÃO:"]
["NO PREÇO DOS SERVIÇOS TOPOGRÁFICOS, PAGOS A PREÇOS UNITÁRIOS, INCLUEM OS CUSTOS DE MÃO-DE-OBRA,  "]
["EQUIPAMENTOS E VEÍCULOS UTILIZADOS NA SUA EXECUÇÃO, BEM COMO CUSTOS DE ADMINISTRAÇÃO E DESPESAS FISCAIS"]

{"sheet":"PFP_VII Geotecnia","index":6,"n_rows":75,"n_cols":12,"rows_kept":75,"cut":false,"hidden":false,"merged":[[0,0,1,5],[2,0,2,6],[3,0,3,6],[5,2,5,5],[5,0,5,1],[69,0,70,4],[70,5,70,6],[6,0,7,2],[6,3,7,3],[6,4,7,4],[6,5,6,6],[64,0,64,1],[66,0,66,5],[68,0,68,2],[68,3,68,6]]}
["SERVIÇOS GEOTÉCNICOS",{"$nulls":5},"CODIGO:"]
[{"$nulls":6},"PFP-VII"]
["NOME DA CONSULTORA:"]
[]
["PROJETO:",null,"OBJETO:",null,null,null,"EDITAL:"]
[{"$f":"'PFP_V Topografia'!A6","v":"Região do Baixio do Poço Magro - Guanambi/BA"},null,{"$f":"'PFP_V Topografia'!C6:F6","v":"Elaboração de projeto básico de engenharia para aproveitamento hidro-agrícola, com sistema de abastecimento de água bruta, em benefício de comunidades rurais localizadas no entorno da região do Baixio de Poço do Magro e adjacências, no município de Guanambi, no Estado da Bahia."}]
["DISCRIMINAÇÃO",null,null,"UNID.","QUANT.","PREÇOS (R$)"]
[{"$nulls":5},"UNITÁRIO","TOTAL"]
["1. -    SONDAGEM MISTA"]
["1.1 -  Sondagem Rotativa"]
["       - Mobilização e desmobilização de equipamentos ",null,null,"equip",null,null,{"$f":"E11*F11","v":0}]
["       - Em granitos, gnaisses, quartzitos e rochas afins",{"$nulls":5},0]
["       - Ø N      ",null,null,"m",null,null,0]
["       - Ø B",null,null,"m",null,null,0]
["       - Ø N (sondagem em solo)",null,null,"m",null,null,0]
["       - Deslocamento e instalação do equipamento",{"$nulls":5},0]
["       - 0  a  200 metros",null,null,"unid.",null,null,0]
["       - 201 a 500 metros",null,null,"unid.",null,null,0]
["       - Acima de 500 metros",null,null,"unid.",null,null,0]
["1.2 - Sondagem a Percussão ",{"$nulls":5},0]
["        - Mobilização e desmobilização de equipamentos",null,null,"equip",0,null,0]
["        - Sondagem à percussão com SPT",null,null,"m",0,null,0]
["        - Deslocamento e instalação de equipamento    ",{"$nulls":5},0]
["        - 0 a 200 metros",null,null,"unid.",0,null,0]
["        - 201 a  500 metros",null,null,"unid.",0,null,0]
["        - Acima de 500 metros",null,null,"unid.",0,null,0]
["2. -  SONDAGEM SÍSMICA DE REFRAÇÃO",null,null,"km",null,null,0]
["3. -  SONDAGEM A  TRADO (4\") ",null,null,"m",75,62.34,{"$f":"ROUND((E28*F28),2)","v":4675.5}]
["3.1","Deslocamento equip sondagem a trado entre furos ",null,"unid.",null,null,0]
["4. -  POÇOS DE INSPEÇÃO",null,null,"m",null,null,0,null,null,1]
["5. -      ENSAIOS",{"$nulls":5},0]
["5.1 -    Ensaios em solos",{"$nulls":5},0]
["5.1.1 - Umidade Natural ",null,null,"ensaio",0,null,0]
["5.1.2 - Densidade Natural",null,null,"ensaio",0,null,0]
["5.1.3 - Limite de Liquidez",null,null,"ensaio",0,null,0]
["5.1.4 - Limite de Plasticidade",null,null,"ensaio",0,null,0]
["5.1.5 - Granulometria por Peneiramento",null,null,"ensaio",0,null,0]
["5.1.6 - Granulometria por Sedimentação",null,null,"ensaio",0,null,0]
["5.1.7 - Ensaio compactação Proctor Normal",null,null,"ensaio",0,null,0]
["5.1.8 - Ensaio compactação Proctor Intermediário",null,null,"ensaio",null,null,0,null,null,1500,100,{"$f":"J40/K40","v":15}]
["5.1.9 - Ensaio compactação Proctor Modificado",null,null,"ensaio",null,null,0]
["5.1.9.1","Índice de Suporte Califórnia ISC c/3 corpos de prova",null,"ensaio",null,null,0]
["5.1.9.2","Índice de Suporte Califórnia ISC c/5 corpos de prova",null,"ensaio",null,null,0]
["5.1.8 - Massa Especifica  Real dos Grãos",null,null,"ensaio",0,null,0]
["5.1.9 - Adensamento Oedométrico",null,null,"ensaio",null,null,0]
["5.1.10 - Triaxial (UU) não consolidado não drenado",null,null,"ensaio",null,null,0]
["5.1.11 - Triaxial (CU) consolidado - não drenado",null,null,"ensaio",null,null,0]
["5.1.12 - Expansão",{"$nulls":5},0]
["5.1.12..1Ensaio de colapsividade em anéis de adensamento ",null,null,{"$f":"D47","v":"ensaio"},null,null,0]
["5.1.12..2Determinação da pressão de expansão",null,null,{"$f":"D49","v":"ensaio"},null,null,0]
["5.1.13 - Dispersão:",{"$nulls":5},0]
["5.1.13.1 - Granulometria Comparativa",null,null,"ensaio",null,null,0,null,null,33000]
["5.1.13.2 - Crumb Test",null,null,"ensaio",null,null,0,null,null,{"$f":"J52/100","v":330}]
["5.1.14.   Infiltração",null,null,"ensaio",null,null,0]
["5.1.15    Ensaio de Perda d''água (05 estágios)",null,null,"ensaio",null,null,0]
["5.1.16 -  Análise da Areia:",{"$nulls":5},0]
["5.1.16.1 Análise Química da Areia teor de mat orgânica",null,null,"ensaio",null,null,0]
["5.1.16.2 Equivalente de Areia",null,null,"ensaio",null,null,0]
["5.1.17-   Mineralogia",null,null,"ensaio",null,null,0]
["5.1.18 - Abrasão \"Los Angeles \"",null,null,"ensaio",null,null,0]
[null,"Índice de lamelaridade",null,"ensaio",null,null,0]
["5.1.19 - Reatividade Potencial",null,null,"ensaio",null,null,0]
["5.1.20 - Permeabilidade vertical de carga variável",null,null,"ensaio",null,null,0]
["5.1.21 - Permeabilidade \"in situ\"",null,null,"ensaio",0,null,0]
["5.1.22 - Índice de Suporte Califórnia ISC",null,null,"ensaio",null,null,0]
[]
["TOTAL DE SERVIÇOS GEOTÉCNICOS",{"$nulls":5},{"$f":"ROUND((SUM(G10:G66)),2)","v":4675.5}]
["NOME DO INFORMANTE:",null,null,"QUALIFICAÇÃO:"]
[]
["ASSINATURA:",{"$nulls":4},"DATA:"]
[]
["OBSERVAÇÃO:"]
["NO PREÇO DOS SERVIÇOS GEOTÉCNICOS, PAGOS A PREÇOS UNITÁRIOS, INCLUEM OS CUSTOS DE  MÃO-DE-OBRA,"]
["EQUIPAMENTOS, VEÍCULOS E LABORATÓRIOS UTILIZADOS NA SUA EXECUÇÃO, BEM COMO CUSTOS DE ADMINISTRAÇÃO E "]
["DESPESAS FISCAIS."]

{"sheet":"PFP_X Cronog Financ","index":7,"n_rows":45,"n_cols":8,"rows_kept":45,"cut":false,"hidden":false,"merged":[[6,6,6,7],[0,0,1,6],[2,0,2,7],[3,0,3,7],[5,0,5,1],[5,2,5,6],[20,2,20,4],[33,2,33,4],[38,0,38,5],[6,0,7,0],[6,1,7,1],[6,2,7,4],[6,5,7,5],[42,0,42,4],[42,5,42,7],[39,3,39,7],[40,0,40,2],[40,3,40,7],[41,0,41,4],[41,5,41,7]]}
["CRONOGRAMA FINANCEIRO",{"$nulls":6},"CODIGO:"]
[{"$nulls":7},"PFP-X"]
["NOME DA CONSULTORA:"]
["      "]
["PROJETO:",null,"OBJETO:",{"$nulls":4},"EDITAL:"]
[{"$f":"'PFP_VII Geotecnia'!A6:B6","v":"Região do Baixio do Poço Magro - Guanambi/BA"},null,{"$f":"'PFP_VII Geotecnia'!C6:F6","v":"Elaboração de projeto básico de engenharia para aproveitamento hidro-agrícola, com sistema de abastecimento de água bruta, em benefício de comunidades rurais localizadas no entorno da região do Baixio de Poço do Magro e adjacências, no município de Guanambi, no Estado da Bahia."}]
["Nº","TAREFA","RELATÓRIO/SERVIÇO DE CAMPO",null,null,"DIAS\nCORRIDOS","SERVIÇOS  PAGOS "]
[{"$nulls":6},"A  PREÇO GLOBAL(R$)","A PREÇO UNITÁRIO (R$)"]
[1,"Entrega do estudo de concepção, Diagnóstico ",null,null,null,30,{"$f":"PFP!N11+(PFP!N14+PFP!N18)/6","v":30152.030833333331}]
[2,"Serviços topográficos ",null,null,null,60,{"$f":"(PFP!N32+PFP!N14+PFP!N18+PFP!N25+PFP!N26)/6","v":43505.617043333332}]
[3,"Serviços geotécnicos",null,null,null,75,{"$f":"PFP!N34+(PFP!N32+PFP!N14+PFP!N18+PFP!N25+PFP!N26)/6","v":48181.117043333332}]
[4,"Minuta do projeto básico",null,null,null,120,{"$f":"(PFP!N14+PFP!N18+PFP!N26)/6","v":27329.660376666667}]
[5,"Entrega dos estudos complementares",null,null,null,135,{"$f":"(PFP!N14+PFP!N18+PFP!N26)/6","v":27329.660376666667}]
[6,"Projeto básico ",null,null,null,155,{"$f":"(PFP!N14+PFP!N18+PFP!N25+PFP!N26+PFP!N32)/6","v":43505.617043333332}]
[7,"Orçamento",null,null,null,180,{"$f":"PFP!N38-'PFP_X Cronog Financ'!G9-'PFP_X Cronog Financ'!G10-'PFP_X Cronog Financ'!G11-'PFP_X Cronog Financ'!G12-'PFP_X Cronog Financ'!G13-'PFP_X Cronog Financ'!G14","v":14197.379543333343}]
[8]
[9]
[10]
[11]
[12]
[13]
[14]
{"$rows_empty":16}
["TOTAL DA FOLHA",{"$nulls":5},{"$f":"SUM(G9:G38)","v":234201.08226},{"$f":"SUM(H9:H38)","v":0}]
["NOME DO INFORMANTE:",null,null,"QUALIFICAÇÃO:"]
[]
["ASSINATURA:",{"$nulls":4},"DATA:"]
[]
["OBSERVAÇÃO:"]
["O CRONOGRAMA FINANCEIRO DEVERÁ ESTAR COMPATÍVEL COM O CRONOGRAMA FÍSICO (FOR PPT-V)"]

{"sheet":"PFP_XII_Mobil_Desmob","index":8,"n_rows":43,"n_cols":7,"rows_kept":43,"cut":false,"hidden":false,"merged":[[44,0,44,6],[45,0,45,6],[38,1,38,4],[42,0,42,6],[43,0,43,6],[4,1,4,6],[8,0,9,5],[10,0,10,1],[41,0,41,4],[40,0,40,2],[12,3,13,5]]}
[]
[null,"                             Ministério  da  Integração  Nacional – MI"]
[null,"                             Companhia  de  Desenvolvimento  dos  Vales  do  São  Francisco e do Parnaíba"]
[null,"                             2ª SUPERINTENDÊNCIA REGIONAL"]
["Serviço:",{"$f":"PFP!F6","v":"Elaboração de projeto básico de engenharia para aproveitamento hidro-agrícola, com sistema de abastecimento de água bruta, em benefício de comunidades rurais localizadas no entorno da região do Baixio de Poço do Magro e adjacências, no município de Guanambi, no Estado da Bahia."}]
["Local:",{"$f":"PFP!A6","v":"Região do Baixio do Poço Magro - Guanambi/BA"}]
[]
[]
["DETALHAMENTO DO CUSTO DE MOBILIZAÇÃO/DESMOBILIZAÇÃO",{"$nulls":5},"CODIGO:"]
[{"$nulls":6},"PFP-XII"]
["NOME DA CONSULTORA:"]
[]
["PROJETO:",{"$f":"PFP!A6","v":"Região do Baixio do Poço Magro - Guanambi/BA"},"OBJETO:",{"$f":"PFP!F6","v":"Elaboração de projeto básico de engenharia para aproveitamento hidro-agrícola, com sistema de abastecimento de água bruta, em benefício de comunidades rurais localizadas no entorno da região do Baixio de Poço do Magro e adjacências, no município de Guanambi, no Estado da Bahia."},null,null,"EDITAL:"]
[]
[null,"DISCRIMINAÇÃO",null,"un","Coef","P. Unit.","P. Total"]
[null,"Veículo pick-up 4x4 cabine dupla",null,"mês",1,{"$f":"'COMP PICK'!D46","v":5089.0615296803653},{"$f":"ROUND((F16*E16),2)","v":5089.0600000000004}]
[null,"Mobilização/Desmobilização para interior",null,"un",1,1653.03,{"$f":"ROUND((F17*E17),2)","v":1653.03}]
[null,"Hospedagem",null,"mês",6,700,4200]
[]
[]
[null,"Custo Direto Total",{"$nulls":4},{"$f":"ROUND((SUM(G16:G18)),2)","v":10942.09}]
[null,"Taxa de BDI %"]
[null,"Total da Composição",{"$nulls":4},{"$f":"ROUND((SUM(G21:G22)),2)","v":10942.09}]
{"$rows_empty":15}
[null,"TOTAIS DO CUSTO DE MOBILIUZAÇÃO/DESMOBILIZAÇÃO",{"$nulls":4},{"$f":"G23","v":10942.09}]
[]
["NOME DO INFORMANTE:",null,null,"QUALIFICAÇÃO:"]
["ASSINATURA:",{"$nulls":4},"DATA:"]
["OBSERVAÇAO:"]

{"sheet":"PFP_XIII_ Det_ custos Adm_","index":9,"n_rows":40,"n_cols":7,"rows_kept":40,"cut":false,"hidden":false,"merged":[[0,0,1,5],[2,0,2,6],[6,0,7,4],[6,5,6,6],[39,0,39,6],[40,0,40,6],[5,2,5,5],[41,0,41,6],[42,0,42,6],[8,1,8,4],[9,1,9,4],[10,1,10,4],[35,1,35,4]]}
["DETALHAMENTO DO CUSTO DE ADMINISTRAÇÃO",{"$nulls":5},"CODIGO:"]
[{"$nulls":6},"PFP-XIII"]
["NOME DA CONSULTORA:"]
[]
["PROJETO:",null,"OBJETO:",null,null,null,"EDITAL:"]
[{"$f":"'PFP_X Cronog Financ'!A6:B6","v":"Região do Baixio do Poço Magro - Guanambi/BA"},null,{"$f":"'PFP_X Cronog Financ'!C6:G6","v":"Elaboração de projeto básico de engenharia para aproveitamento hidro-agrícola, com sistema de abastecimento de água bruta, em benefício de comunidades rurais localizadas no entorno da região do Baixio de Poço do Magro e adjacências, no município de Guanambi, no Estado da Bahia."}]
["DISCRIMINAÇÃO",{"$nulls":4},"VALORES"]
[{"$nulls":5},"%","R$"]
[1,"Custos da equipe da administração central da empresa consultora ( diretoria, pessoal técnico de apoio e pessoal administrativo não diretamente vinculado à prestação dos serviços)",null,null,null,0.09,{"$f":"ROUND((F9*PFP!$N$14),2)","v":7668.64}]
[2,"Outras despesas que afetam o custo de produção como: avaliação do concreto com ensaios, análises de água, treinamento, biblioteca, programa de qualidade, auditoria interna e externa",null,null,null,0.02,{"$f":"ROUND((F10*PFP!$N$14),2)","v":1704.14}]
[3,"Despesas com aluguéis, comunicação, manutenção e transporte não diretamente relacionados com o custo direto dos serviços",null,null,null,0.01,{"$f":"ROUND((F11*PFP!$N$14),2)","v":852.07}]
[4]
["5"]
{"$rows_empty":22}
[null,"TOTAIS DO CUSTO DE ADMINISTRAÇÃO",null,null,null,{"$f":"SUM(F9:F35)","v":0.12},{"$f":"ROUND((SUM(G9:G35)),2)","v":10224.85}]
[]
["NOME DO INFORMANTE:",null,null,"QUALIFICAÇÃO:"]
["ASSINATURA:",{"$nulls":4},"DATA:"]
["OBSERVAÇAO:"]

{"sheet":"PFP_XIV Det_ Desp Fiscais","index":10,"n_rows":47,"n_cols":10,"rows_kept":47,"cut":false,"hidden":false,"merged":[[8,0,8,4],[9,0,9,4],[0,0,1,6],[2,0,2,7],[6,0,7,4],[6,5,6,7],[5,0,5,1],[5,2,5,6],[42,0,42,7],[47,0,47,7],[28,0,28,4],[29,0,29,4],[30,0,30,4],[31,0,31,4],[34,0,34,4],[35,0,35,4],[36,0,36,4],[41,0,41,7],[32,0,32,4],[33,0,33,4],[10,0,10,4],[11,0,11,4],[12,0,12,4],[21,0,21,4],[22,0,22,4],[23,0,23,4],[24,0,24,4],[25,0,25,4],[26,0,26,4],[27,0,27,4]]}
["DETALHAMENTO DE DESPESAS FISCAIS",{"$nulls":6},"CODIGO:"]
[{"$nulls":7},"PFP-XIV"]
["NOME DA CONSULTORA:"]
[]
["PROJETO:",null,"OBJETO:",{"$nulls":4},"EDITAL:"]
[{"$f":"'PFP_XIII_ Det_ custos Adm_'!A6","v":"Região do Baixio do Poço Magro - Guanambi/BA"},null,{"$f":"'PFP_XIII_ Det_ custos Adm_'!C6","v":"Elaboração de projeto básico de engenharia para aproveitamento hidro-agrícola, com sistema de abastecimento de água bruta, em benefício de comunidades rurais localizadas no entorno da região do Baixio de Poço do Magro e adjacências, no município de Guanambi, no Estado da Bahia."}]
["DISCRIMINAÇÃO",{"$nulls":4},"VALORES"]
[{"$nulls":5},"DF %","DF' %","R$"]
[]
["1 - ISS",{"$nulls":4},5,{"$f":"ROUND(((1/(1-$F$37/100))*F10),2)","v":5.47},{"$f":"ROUND((F10/($F$10+$F$11+$F$12)*$H$37),2)","v":9046.1}]
["2 - PIS",{"$nulls":4},0.65,{"$f":"ROUND(((1/(1-$F$37/100))*F11),2)","v":0.71},{"$f":"ROUND((F11/($F$10+$F$11+$F$12)*$H$37),2)","v":1175.99}]
["3 - COFINS",{"$nulls":4},3,3.28,{"$f":"ROUND((F12/($F$10+$F$11+$F$12)*$H$37),2)","v":5427.66}]
[]
[]
[{"$nulls":9},{"$f":"SUM(H10:H12)","v":15649.75}]
{"$rows_empty":21}
["TOTAIS DE DESPESAS FISCAIS ",{"$nulls":4},{"$f":"ROUND((F10+F11+F12),2)","v":8.65},{"$f":"ROUND((G10+G11+G12),2)","v":9.4600000000000009},{"$f":"PFP!N29","v":15649.76}]
["NOME DO INFORMANTE:",null,null,"QUALIFICAÇÃO:"]
[]
["ASSINATURA:",{"$nulls":4},"DATA:"]
[]
["Observação:"]
[" As despesas fiscais (DF) incidem sobre o total da fatura e não sobre os custos incorridos. Portanto aplicar a seguinte fórmula:"]
[" DF' = { [ 1 / ( 1 - DF ) ] - 1 } x 100"]
[" ou seja, para o valor máximo de 8,65%, o valor a ser aplicado na composição dos preços será:"]
[" DF' = { [ 1 / ( 1 - 00865 ) ] - 1 } x 100"]
[" DF' =0,0946  ou  9,46%"]

{"sheet":"PFP_XV Det_ Enc_ Soc_","index":11,"n_rows":50,"n_cols":7,"rows_kept":50,"cut":false,"hidden":false,"merged":[[8,1,8,4],[18,0,18,4],[19,0,19,5],[0,0,1,5],[2,0,2,6],[6,0,7,4],[6,5,6,6],[5,2,5,5],[40,0,40,6],[46,0,46,4],[41,1,41,4],[43,1,43,4],[44,0,44,4],[42,1,42,4],[39,0,39,4],[20,1,20,4],[31,0,31,4],[34,1,34,4],[38,1,38,4],[32,1,32,6],[33,1,33,4],[35,1,35,4],[37,1,37,4],[36,1,36,4]]}
["DETALHAMENTO DOS ENCARGOS SOCIAIS",{"$nulls":5},"CODIGO:"]
[{"$nulls":6},"PFP-XV"]
["NOME DA CONSULTORA:"]
[]
["PROJETO:",null,"OBJETO:",null,null,null,"EDITAL:"]
[{"$f":"'PFP_XIV Det_ Desp Fiscais'!A6:B6","v":"Região do Baixio do Poço Magro - Guanambi/BA"},null,{"$f":"'PFP_XIV Det_ Desp Fiscais'!C6:G6","v":"Elaboração de projeto básico de engenharia para aproveitamento hidro-agrícola, com sistema de abastecimento de água bruta, em benefício de comunidades rurais localizadas no entorno da região do Baixio de Poço do Magro e adjacências, no município de Guanambi, no Estado da Bahia."}]
["DISCRIMINAÇÃO",{"$nulls":4},"VALORES"]
[{"$nulls":5},"%","R$"]
["A","ENCARGOS SOCIAIS BÁSICOS"]
["A1","INSS",null,null,null,0,{"$f":"F10*'PFP_I Equip Proj'!$D$42","v":0}]
["A2","SESI",null,null,null,1.4999999999999999E-2,{"$f":"F11*'PFP_I Equip Proj'!$D$42","v":1278.1074000000001}]
["A3","SENAI",null,null,null,0.01,{"$f":"F12*'PFP_I Equip Proj'!$D$42","v":852.0716000000001}]
["A4","INCRA",null,null,null,2E-3,{"$f":"F13*'PFP_I Equip Proj'!$D$42","v":170.41432}]
["A5","SEBRAE",null,null,null,6.0000000000000001E-3,{"$f":"F14*'PFP_I Equip Proj'!$D$42","v":511.24296000000004}]
["A6","Salário Educação ",null,null,null,2.5000000000000001E-2,{"$f":"F15*'PFP_I Equip Proj'!$D$42","v":2130.1790000000001}]
["A7","Seguro contra acidentes de trabalho",null,null,null,0.03,{"$f":"F16*'PFP_I Equip Proj'!$D$42","v":2556.2148000000002}]
["A8","FGTS",null,null,null,0.08,{"$f":"F17*'PFP_I Equip Proj'!$D$42","v":6816.5728000000008}]
["A9","SECONCI",null,null,null,0,{"$f":"F18*'PFP_I Equip Proj'!$D$42","v":0}]
["SUBTOTAL DE \"A\"",{"$nulls":4},{"$f":"ROUND(SUM(F10:F18),4)","v":0.16800000000000001},{"$f":"ROUND((SUM(G10:G18)),2)","v":14314.8}]
[]
["B"," ENCARGOS SOCIAIS QUE RECEBEM INCIDÊNCIA DE \"A\""]
["B1","Repouso Semanal Remunerado",null,null,null,"Não incide","Não incide"]
["B2","Feriados",null,null,null,"Não incide","Não incide"]
["B3","Auxílio - Enfermidade",null,null,null,7.0000000000000001E-3,{"$f":"F24*'PFP_I Equip Proj'!$D$42","v":596.45012000000008}]
["B4","13º Salário  ",null,null,null,8.3299999999999999E-2,{"$f":"F25*'PFP_I Equip Proj'!$D$42","v":7097.7564280000006}]
["B5","Licença Paternidade",null,null,null,5.0000000000000001E-4,{"$f":"F26*'PFP_I Equip Proj'!$D$42","v":42.603580000000001}]
["B6","Faltas Justificadas",null,null,null,5.5999999999999999E-3,{"$f":"F27*'PFP_I Equip Proj'!$D$42","v":477.16009600000001}]
["B7","Dias de Chuvas",null,null,null,"Não incide","Não incide"]
["B8","Auxílio Acidente do Trabalho",null,null,null,8.0000000000000004E-4,{"$f":"F29*'PFP_I Equip Proj'!$D$42","v":68.165728000000001}]
["B9","Férias Gozadas",null,null,null,7.7899999999999997E-2,{"$f":"F30*'PFP_I Equip Proj'!$D$42","v":6637.6377640000001}]
["B10","Salário Maternidade",null,null,null,2.0000000000000001E-4,{"$f":"F31*'PFP_I Equip Proj'!$D$42","v":17.041432}]
["SUBTOTAL DE  \"B\"",{"$nulls":4},{"$f":"SUM(F22:F31)","v":0.17529999999999998},{"$f":"ROUND((SUM(G22:G31)),2)","v":14936.82}]
[]
["C"," ENCARGOS SOCIAIS QUE NÃO RECEBEM INCIDÊNCIA DE \"A\""]
["C1","Aviso Prévio Indenizado",null,null,null,4.9500000000000002E-2,{"$f":"F35*'PFP_I Equip Proj'!$D$42","v":4217.7544200000002}]
["C2","Aviso Prévio Trabalhado",null,null,null,1.1999999999999999E-3,{"$f":"F36*'PFP_I Equip Proj'!$D$42","v":102.248592}]
["C3","Férias Indenizadas",null,null,null,2.7799999999999998E-2,{"$f":"F37*'PFP_I Equip Proj'!$D$42","v":2368.7590479999999}]
["C4","Depósito Rescisão Sem Justa Causa",null,null,null,3.85E-2,{"$f":"F38*'PFP_I Equip Proj'!$D$42","v":3280.4756600000001}]
["C5","Indenização Adicional",null,null,null,4.1999999999999997E-3,{"$f":"F39*'PFP_I Equip Proj'!$D$42","v":357.87007199999999}]
["SUBTOTAL DE \"C\"",{"$nulls":4},{"$f":"ROUND(SUM(F35:F39),4)","v":0.1212},{"$f":"ROUND((SUM(G35:G39)),2)","v":10327.11}]
[]
["D"," REINCIDÊNCIAS"]
["D1","Reincidência de Grupo \"A\" sobre Grupo \"B\"",null,null,null,{"$f":"ROUND((F19*F32),4)","v":2.9499999999999998E-2},{"$f":"F43*'PFP_I Equip Proj'!$D$42","v":2513.6112199999998}]
["D2","Reincidência de Grupo \"A\" sobre Aviso Prévio Trabalhado e Reincidência do FGTS sobre Aviso Prévio Indenizado",null,null,null,4.1999999999999997E-3,{"$f":"F44*'PFP_I Equip Proj'!$D$42","v":357.87007199999999}]
["SUBTOTAL DE \"D\"",{"$nulls":4},{"$f":"ROUND((F44+F43),4)","v":3.3700000000000001E-2},{"$f":"ROUND((SUM(G43:G44)),2)","v":2871.48}]
[]
["TOTAIS DE ENCARGOS SOCIAIS",{"$nulls":4},{"$f":"ROUND(F19+F32+F40+F45,4)","v":0.49819999999999998},{"$f":"ROUND((G19+G32+G40+G45),2)","v":42450.21}]
["NOME DO INFORMANTE:",null,null,"QUALIFICAÇÃO:"]
["ASSINATURA:",{"$nulls":4},"DATA:"]
["Observação:"]

{"sheet":"PTP_I Ficha Cur_ ","index":12,"n_rows":60,"n_cols":9,"rows_kept":60,"cut":false,"hidden":false,"merged":[[9,5,9,6],[9,7,9,8],[0,0,1,7],[2,0,2,8],[4,0,4,2],[4,3,4,7],[5,3,5,7],[6,0,6,8],[8,0,8,2],[8,3,8,4],[8,5,8,6],[8,7,8,8],[17,3,17,4],[17,5,17,6],[10,0,10,8],[11,0,11,2],[11,3,11,4],[11,5,11,6],[12,0,12,2],[13,0,13,2],[14,0,14,2],[15,0,15,2],[16,0,16,2],[17,0,17,2],[22,1,22,8],[49,0,49,4],[18,0,18,2],[18,3,18,4],[18,5,18,6],[19,0,19,2],[21,0,21,2],[21,3,21,4],[21,5,21,6],[19,3,19,4],[19,5,19,6],[20,0,20,2],[20,3,20,4],[20,5,20,6],[49,5,49,8],[61,0,61,8],[53,0,53,6],[54,0,54,6],[54,7,54,8],[55,0,55,8],[59,0,59,8],[60,0,60,8],[50,0,50,4],[50,5,50,8],[52,0,52,4],[52,5,52,8],[51,0,51,4],[51,5,51,8]]}
["FICHA CURRICULAR",{"$nulls":7},"CODIGO:"]
[{"$nulls":8},"PTP-I"]
["NOME DA CONSULTORA:"]
[]
["PROJETO:",null,null,"OBJETO:",{"$nulls":4},"EDITAL:"]
[{"$f":"PFP!A6","v":"Região do Baixio do Poço Magro - Guanambi/BA"},null,null,{"$f":"PFP!F6","v":"Elaboração de projeto básico de engenharia para aproveitamento hidro-agrícola, com sistema de abastecimento de água bruta, em benefício de comunidades rurais localizadas no entorno da região do Baixio de Poço do Magro e adjacências, no município de Guanambi, no Estado da Bahia."}]
["NOME DO TÉCNICO:"]
[]
["FUNÇÃO NO PROJETO:",null,null,"ATUAÇÃO:",null,"DATA  NASCIMENTO:",null,"NACIONALIDADE:"]
[null,null,null,"(   ) PERM.","(   ) EVENT."]
["INSTRUÇÃO"]
["ESCOLARIDADE",null,null,"ESTABELECIMENTO",null,"LOCAL",null,"DURAÇÃO","ANO CONCLUSÃO"]
{"$rows_empty":10}
["ANO","EXPERIÊNCIA PROFISSIONAL"]
{"$rows_empty":26}
["CONCORDO EM PARTICIAPAR DESTE  OBJETO (ASSINATURA DO TÉCNICO):",{"$nulls":4},"Nº DO REGISTRO PROFISSIONAL:"]
[]
["NOME DO INFORMANTE:",{"$nulls":4},"QUALIFICAÇÃO:"]
[]
["ASSINATURA:",{"$nulls":6},"DATA:"]
[]
["OBSERVAÇÃO:"]
["1 - JUNTAR OS COMPROVANTES DE ESCOLARIDADE (GRADUAÇÃO, ESPECIALIZAÇÃO, MESTRADO E DOUTORADO, SE FOR O CASO)"]
["2 - RELACIONAR AS ATIVIDADES REPRESENTATIVAS DA EXPERIÊNCIA PROFISSIONAL COM DESTAQUE PARA OS SERVIÇOS SIMILARES AO "]
["     OBJETO."]
["3 - JUNTAR OS COMPROVANTES DA EXPERIÊNCIA PROFISSIONAL, CERTIFICADOS PELA UNIDADE PROFISSIONAL COMPETENTE."]

{"sheet":"PTP_II EQUIPE TÉCNICA","index":13,"n_rows":59,"n_cols":9,"rows_kept":59,"cut":false,"hidden":false,"merged":[[6,6,7,6],[0,0,1,7],[2,0,2,8],[4,3,4,7],[5,3,5,7],[6,0,7,2],[6,3,7,3],[6,4,7,5],[8,0,8,2],[9,0,9,2],[9,4,9,5],[14,0,14,2],[14,4,14,5],[12,0,12,2],[15,0,15,2],[10,4,10,5],[11,0,11,2],[11,4,11,5],[10,0,10,2],[12,4,12,5],[13,0,13,2],[13,4,13,5],[16,0,16,2],[16,4,16,5],[19,0,19,2],[19,4,19,5],[24,0,24,2],[24,4,24,5],[17,0,17,2],[17,4,17,5],[18,0,18,2],[18,4,18,5],[20,0,20,2],[20,4,20,5],[21,0,21,2],[21,4,21,5],[22,0,22,2],[22,4,22,5],[34,0,34,2],[34,4,34,5],[28,0,28,2],[28,4,28,5],[30,0,30,2],[30,4,30,5],[33,0,33,2],[33,4,33,5],[29,0,29,2],[29,4,29,5],[31,0,31,2],[31,4,31,5],[32,0,32,2],[32,4,32,5],[23,0,23,2],[23,4,23,5],[25,0,25,2],[25,4,25,5],[27,0,27,2],[27,4,27,5],[26,0,26,2],[26,4,26,5],[35,0,35,2],[35,4,35,5],[41,0,41,2],[38,0,38,2],[38,4,38,5],[41,4,41,5],[37,4,37,5],[42,0,42,2],[42,4,42,5],[36,0,36,2],[36,4,36,5],[39,0,39,2],[40,0,40,2],[40,4,40,5],[37,0,37,2],[50,0,50,8],[47,0,47,4],[47,5,47,8],[48,0,48,6],[49,0,49,6],[49,7,49,8],[46,0,46,4],[46,5,46,8],[43,0,43,2],[43,4,43,5],[45,0,45,2],[45,4,45,5],[44,0,44,2],[44,4,44,5]]}
["EQUIPE TÉCNICA DE PROJETO",{"$nulls":7},"CODIGO:"]
[{"$nulls":8},"PTP-II"]
["NOME DA CONSULTORA:"]
[]
["PROJETO:",null,null,"OBJETO:",{"$nulls":4},"EDITAL:"]
[{"$f":"PFP!A6","v":"Região do Baixio do Poço Magro - Guanambi/BA"},null,null,{"$f":"PFP!F6","v":"Elaboração de projeto básico de engenharia para aproveitamento hidro-agrícola, com sistema de abastecimento de água bruta, em benefício de comunidades rurais localizadas no entorno da região do Baixio de Poço do Magro e adjacências, no município de Guanambi, no Estado da Bahia."}]
["CATEGORIA",null,null,"SÍMBOLO","PROFISSÃO/FUNÇÃO",null,"QUANT,","HOMENS","ATUAÇÃO"]
[{"$nulls":7},"MÊS","(   ) P       (   ) E"]
["NÍVEL SUPERIOR"]
["Profissional Master",null,null,"C","Consultor"]
["Profissional Sênior Coord.",null,null,"P0","Coordenador Geral (Eng Sênior)",null,1]
["Profissional Sênior",null,null,"P1","Eng Pleno",null,3]
["Profissional Médio",null,null,"P2","Eng Médio"]
["Profissional Júnior",null,null,"P3","Eng Júnior"]
["Profissional Trainee",null,null,"P4","Eng Trainee"]
["NÍVEL TÉCNICO"]
["Técnico Sênior Coordenador",null,null,"T0","Topógrafo Sênior Coordenador"]
["Técnico Sênior Coordenador",null,null,"T0","Laboratorista de Solos Coord. "]
["Técnico Sênior Coordenador",null,null,"T0","Laboratorista  de Concr. Coord."]
["Técnico Sênior Coordenador",null,null,"T0","Técnico Segurança Trab. Coord."]
["Técnico Sênior Coordenador",null,null,"T0","Técnico Meio Ambiente Coord."]
["Técnico Sênior Coordenador",null,null,"T0","Operador de DGPS"]
["Técnico Sênior",null,null,"T1","Topógrafo Sênior ",null,1]
["Técnico Sênior",null,null,"T1","Cadista/Projetista Sênior"]
["Técnico Sênior",null,null,"T1","Laboratorista de Solos Sênior",null,1]
["Técnico Sênior",null,null,"T1","Laboratorista de Concreto Sênior"]
["Técnico Sênior",null,null,"T1","Inspetor de Solo/Concreto Sênior"]
["Técnico Sênior",null,null,"T1","Técnico Segurança Trabalho"]
["Técnico Sênior",null,null,"T1","Técnico Desmonte Rocha"]
["Técnico Sênior",null,null,"T1","Técnico de Edificações"]
["Técnico Sênior",null,null,"T1","Documentador"]
["Técnico Sênior",null,null,"T1","Modelista"]
["Técnico Médio",null,null,"T2","Topógrafo Médio"]
["Técnico Médio",null,null,"T2","Cadista/Desenhista",null,1]
["Técnico Médio",null,null,"T2","Aux. Laboratório de Solo/Concret."]
["Técnico Médio",null,null,"T2","Nivelador"]
["Técnico Médio",null,null,"T2","Técnico de Estrada/Agrônomo"]
["Técnico Júnior",null,null,"T3","Auxiliar de Topógrafo",null,1]
["Técnico Júnior",null,null,"T3","Auxiliar de Laborat. Sol./Concr."]
["NÍVEL AUXILIAR"]
["Auxiliar  Sênior",null,null,"A1","Assistente Administrativo"]
["Auxiliar Médio",null,null,"A2","Ajudante Administrativo"]
["Auxiliar Júnior",null,null,"A3","Auxiliar Administrativo",null,1]
["APOIO"]
["Operário não Qualificado",null,null,"OP","Servente/Faxineira"]
["Operário não Qualificado",null,null,"OP","Auxiliar de Campo "]
["NOME DO INFORMANTE:",{"$nulls":4},"QUALIFICAÇÃO:"]
[]
["ASSINATURA:",{"$nulls":6},"DATA:"]
[]
["OBSERVAÇÃO:"]
["2 - O SÍMBOLO “P” SERÁ USADO PARA TODOS DE NÍVEL SUPERIOR, INCLUSIVE COORDENADOR E SUPERVISOR"]
["2 - O SÍMBOLO “T” SERÁ USADO PARA TODOS DE NÍVEL MÉDIO, INCLUSIVE TOPÓGRAFOS, LABORATORISTAS, CADISTAS, ETC."]
["3 - O SÍMBOLO “A” INCLUI  AUXILIARES DE CAMPO, DE LABORATÓRIO, SECRETÁRIAS, DIGITADORES, ARQUIVISTAS. ETC."]
["4 - CATEGORIA MASTER  (EXPERIÊNCIA ACIMA DE 10 ANOS)"]
["5- CATEGORIA SÊNIOR (EXPERIÊNCIA ACIMA DE 10 ANOS)"]
["6 - CATEGORIA MÉDIO  (EXPERIÊNCIA > 5 < 10 ANOS)"]
["7- CATEGORIA JÚNIOR  (EXPERIÊNCIA > 2 < 5  ANOS)"]
["8 - CATEGORIA TRAINEE (EXPERIÊNCIA > 6 MESES < 2 ANOS)"]

{"sheet":"PTP_III Cronog Per NS","index":14,"n_rows":54,"n_cols":13,"rows_kept":54,"cut":false,"hidden":false,"merged":[[4,0,4,12],[5,2,5,9],[5,10,5,12],[0,0,1,8],[0,9,0,12],[1,9,1,12],[3,0,3,12],[6,2,7,9],[6,10,6,12],[8,0,9,0],[8,1,8,3],[8,5,8,6],[8,7,8,12],[53,0,53,12],[51,0,51,6],[51,7,51,12],[52,0,52,6],[52,7,52,12],[48,0,48,6],[49,0,49,4],[49,5,49,12],[50,0,50,4],[50,5,50,12]]}
["CRONOGRAMA DE PERMANÊNCIA - NÍVEL SUPERIOR ",{"$nulls":8},"CODIGO:"]
[{"$nulls":9},"PTP-III"]
[]
["NOME DA CONSULTORA:"]
[]
["PROJETO:",null,"OBJETO:",{"$nulls":7},"EDITAL:"]
[{"$f":"'PFP_XIV Det_ Desp Fiscais'!A6:B6","v":"Região do Baixio do Poço Magro - Guanambi/BA"},null,{"$f":"PFP!F6","v":"Elaboração de projeto básico de engenharia para aproveitamento hidro-agrícola, com sistema de abastecimento de água bruta, em benefício de comunidades rurais localizadas no entorno da região do Baixio de Poço do Magro e adjacências, no município de Guanambi, no Estado da Bahia."}]
[]
["TAREFA","EQUIPE PROPOSTA",null,null,"LOCAL","ATUAÇÃO",null,"NÚMERO DE HOMENS/MÊS"]
[null,"ESPECIALIDADE","PROFISSÃO","FUNÇÃO","TRABALHO","INIC.","FIM","C","P0","P1","P2","P3","P4"]
{"$rows_empty":38}
["TOTAL DE HOMENS MÊS POR CATEGORIA"]
["NOME DO INFORMANTE:",{"$nulls":4},"QUALIFICAÇÃO:"]
[]
["ASSINATURA:",{"$nulls":6},"DATA:"]
[]
["OBSERVAÇÃO:"]

{"sheet":"PTP_IV Cronog Per NT e A","index":15,"n_rows":52,"n_cols":15,"rows_kept":52,"cut":false,"hidden":false,"merged":[[0,0,1,10],[0,11,0,14],[1,11,1,14],[4,2,4,11],[4,12,4,14],[46,0,46,6],[5,2,5,11],[5,12,5,14],[6,0,7,0],[6,1,6,3],[6,5,6,6],[6,7,6,14],[5,0,5,1]]}
["CRONOGRAMA DE PERMANÊNCIA - NÍVELTÉC. E AUXILIAR",{"$nulls":10},"CODIGO:"]
[{"$nulls":11},"PTP-IV"]
["NOME DA CONSULTORA:"]
[]
["PROJETO:",null,"OBJETO:",{"$nulls":9},"EDITAL:"]
[{"$f":"'PFP_XV Det_ Enc_ Soc_'!A6","v":"Região do Baixio do Poço Magro - Guanambi/BA"},null,{"$f":"'PFP_XV Det_ Enc_ Soc_'!C6:F6","v":"Elaboração de projeto básico de engenharia para aproveitamento hidro-agrícola, com sistema de abastecimento de água bruta, em benefício de comunidades rurais localizadas no entorno da região do Baixio de Poço do Magro e adjacências, no município de Guanambi, no Estado da Bahia."}]
["TAREFA","EQUIPE PROPOSTA",null,null,"LOCAL","ATUAÇÃO",null,"NÚMERO DE HOMENS/MÊS"]
[null,"ESPECIALIDADE","PROFISSÃO","FUNÇÃO","TRABALHO","INIC.","FIM","T0","T1","T2","T3","A1","A2","A3","OP"]
{"$rows_empty":38}
["TOTAL DE HOMENS MÊS POR CATEGORIA"]
["NOME DO INFORMANTE:",{"$nulls":4},"QUALIFICAÇÃO:"]
[]
["ASSINATURA:",{"$nulls":11},"DATA:"]
[]
["OBSERVAÇÃO:"]

{"sheet":"PTP_V Cronog Físico","index":16,"n_rows":48,"n_cols":33,"rows_kept":48,"cut":false,"hidden":false,"merged":[[4,0,4,7],[4,8,4,29],[4,30,4,33],[0,0,1,27],[0,28,0,33],[1,28,1,33],[2,0,2,33],[5,30,5,33],[6,0,7,0],[6,1,7,2],[6,3,7,6],[6,8,6,9],[6,10,6,11],[6,12,6,13],[6,14,6,15],[6,24,6,25],[6,26,6,27],[5,0,5,7],[5,8,5,29],[7,20,7,21],[7,22,7,23],[6,16,6,17],[6,18,6,19],[6,30,6,31],[6,32,6,33],[7,10,7,11],[7,12,7,13],[7,14,7,15],[7,16,7,17],[7,18,7,19],[7,28,7,29],[7,30,7,31],[7,32,7,33],[6,20,6,21],[6,22,6,23],[7,24,7,25],[7,26,7,27],[6,28,6,29],[45,0,45,24],[46,0,46,24],[47,0,47,33],[43,0,43,15],[43,16,43,33],[44,1,44,15],[44,16,44,33]]}
["CRONOGRAMA FÍSICO ",{"$nulls":27},"CODIGO:"]
[{"$nulls":28},"PTP-V"]
["NOME DA CONSULTORA:"]
[]
["PROJETO:",{"$nulls":7},"OBJETO:",{"$nulls":21},"EDITAL:"]
[{"$f":"'PTP_IV Cronog Per NT e A'!A6:B6","v":"Região do Baixio do Poço Magro - Guanambi/BA"},{"$nulls":7},{"$f":"PFP!F6","v":"Elaboração de projeto básico de engenharia para aproveitamento hidro-agrícola, com sistema de abastecimento de água bruta, em benefício de comunidades rurais localizadas no entorno da região do Baixio de Poço do Magro e adjacências, no município de Guanambi, no Estado da Bahia."}]
["SEQ","COD.",null,"TAREFA/ATIVIDADE",null,null,null,"DURAÇÃO","DATA",null,"MÊS1",null,"MÊS2",null,"MÊS3",null,"MÊS4",null,"MÊS5",null,"MÊS6",null,"MÊS7",null,"MÊS8",null,"MÊS9",null,"MÊS10",null,"MÊS11",null,"MÊS12"]
[{"$nulls":7},"(DIAS)","INIC.","FIM"]
{"$rows_empty":35}
["NOME DO INFORMANTE:",{"$nulls":15},"QUALIFICAÇÃO:"]
[]
["ASSINATURA:",{"$nulls":24},"DATA:"]
[]
["LEGENDA:"]

{"sheet":"Reajustamento","index":17,"n_rows":29,"n_cols":6,"rows_kept":29,"cut":false,"hidden":false,"merged":[[13,1,13,2],[14,1,14,2],[16,1,16,3],[28,1,28,2],[1,0,1,8],[2,0,2,8],[3,0,3,8],[21,0,21,3],[24,1,24,2],[26,1,26,2],[5,1,5,3]]}
[]
[" REAJUSTAMENTO - MEMÓRIA DE CALCULO"]
[]
[]
[]
[null,"Período de referência dos índices: "]
[null,"i - AGOSTO/2017",null,"Mês de aniversário da Proposta"]
[null,"o - AGO/2015",null,"Mês de apresentação da Proposta"]
[]
["I.","Formulário:"]
[]
[]
[null,"sendo;"]
[null,"R - Valor do reajustamento"]
[null,"V - Valor a ser reajustado"]
[]
["1.","A0157980 - Serviços de Consultoria (Coluna 39 da FGV- INCC)"]
[]
[null,"Ei",216.619,null,"=",{"$f":"((C19-C20)/C20)","v":6.0127341153900747E-2}]
[null,"Eo ",204.333]
[]
["Portanto:"]
[null,null,"R = V * ",{"$f":"F19","v":6.0127341153900747E-2}]
[]
[null,"Valor Reajustado:"]
[]
[null,"Saldo Reajustado",null,{"$f":"ROUND((D25*D23),2)","v":0}]
[]
[null,"Valor Reajustado + Saldo Reajustado",null,{"$f":"D25+D27","v":0}]

{"sheet":"COMP PICK","index":18,"n_rows":55,"n_cols":7,"rows_kept":55,"cut":false,"hidden":false,"merged":[[1,1,1,3],[2,1,2,3],[3,1,3,3]]}
[null,null,"COMP. AUX. VEÍCULO"]
[null,"CODEVASF"]
[]
[null,"(B11) Hilux CD SR 3.0 diesel 4x4 163cv"]
[null,null," "]
[null,"A","Depreciação mensal do equipamento"]
[null,"A1","Preço de Aquisição ",118286]
[null,"A2","Tempo previsto de vida útil (meses)",36]
[null,"A3","Previsão de recup. Na venda do bem usado",0.4]
[null,"A4","Custo mensal [A1-(A3xA1)]/A2",{"$f":"(D7-(D9*D7))/D8","v":1971.4333333333334}]
[]
[null,"B","Juros pelo Capital empregado"]
[null,"B1","Taxa mensal de Juros ",0.05]
[null,"B2","Juros s/depreciação/aluguel (B1xA4)",{"$f":"D13*D10","v":98.571666666666673}]
[]
[null,"C","Conservação e manutenção "]
[null,"C1","Taxa de gastos s/a deprec. Inc. seguros (%)",1]
[null,"C2","Incidência mensal (C1xA4)",{"$f":"D17*D10","v":1971.4333333333334}]
[null," "," "," "]
[null,"D","Combustível"]
[null,"D1","Média mensal de quilômetro por veículo",2500]
[null,"D2","Preço do litro de combustível",{"$f":"[1]INSUMOS!E25","v":3.85}]
[null,"D3","Quilômetros rodados com um litro combustivel",10]
[null,"D4","Combustivel    (D1/D3)*D2",{"$f":"(D21/D23)*D22","v":962.5}]
[]
[null,"E","Lubrificantes"]
[null,"E1","Quilometragem do Contrato ",{"$f":"D21*4","v":10000}]
[null,"E2","Franquia por troca de óleo (km)",5000]
[null,"E3","Preço do litro de óleo",24.53]
[null,"E4","Quantidade de litros de óleo por troca",3.5]
[null,"E5","Quantidade de dias do Contrato",365]
[null,"E6","Lubrificantes  E = (E1*E3*E4*30)/E2*E5",{"$f":"(D27*D29*D30*30)/(D28*D31)","v":14.113150684931506}]
[]
[null,"F","Pneus"]
[null,"F1","Quilometragem do Contrato ",{"$f":"D21*4","v":10000}]
[null,"F2","Vida do Pneu em quilômetros",45000]
[null,"F3","Quantidade de pneus",5]
[null,"F4","Preço do Pneu",777.56]
[null,"F5","Quantidade de dias do contrato ",{"$f":"D31","v":365}]
[null,"F6","Pneus = (F1*F3*F4*30)/(F2*F5)",{"$f":"(D35*D37*D38*30)/(D36*D39)","v":71.010045662100453}]
[]
[null,"G","Motorista"]
[null,"G1","Salário com encargos sociais",1550.56]
[]
[null,"H","Custo Mensal"," "]
[null,null,"Sem Motorista",{"$f":"D10+D14+D18+D24+D32+D40","v":5089.0615296803653},null,null," "]
[null,null,"Com Motorista",{"$f":"D10+D14+D18+D24+D32+D40+D43","v":6639.6215296803657}]
[]
[null,"I","Custo Direto p/ km Rodado"]
[null,null,"Sem Motorista",{"$f":"D46/D21","v":2.0356246118721462}]
[null,null,"Com Motorista",{"$f":"D47/D21","v":2.6558486118721465}]
[]
[null,"J","Preço cobrado pela empresa "," "]
[null,"J1","Sem Motorista",{"$f":"D46*1.299","v":6610.690927054794}]
[null,"J2","Com Motorista",{"$f":"D47*1.299","v":8624.8683670547944}]